bitfinex/quotes_ETHUSD_20260313
["timestamp","ask_amount","ask_price","bid_price","bid_amount"]
[1773419024231,3.69044684,2121.8,2121.0,0.04714757]
[1773419024405,1.17830041,2121.7,2120.9,0.04714979]
[1773419024728,4.86874725,2121.7,2120.6,3.76018822]
[1773419025701,1.17830041,2121.7,2120.6,3.76018822]
[1773419026109,1.17830041,2121.7,2121.2,0.0011]
[1773419026110,4.69585425,2121.7,2121.2,0.0011]
[1773419026303,1.1784115,2121.5,2120.4,8.11476263]
[1773419026630,4.69596534,2121.5,2121.0,0.0011]
[1773419026818,1.17838459,2121.6,2121.0,0.0011]
[1773419027128,0.001,2121.7,2121.0,3.40066082]
[1773419027332,1.17930338,2121.7,2121.0,0.0011]
[1773419028231,0.001,2121.7,2121.0,0.0011]
[1773419028532,0.001,2121.7,2121.1,1.17863372]
[1773419030029,0.001,2121.7,2121.1,4.57819454]
[1773419030525,0.001,2121.7,2121.2,3.39956082]
[1773419030827,0.001,2121.7,2121.1,1.17863372]
[1773419031213,1.1780228,2122.2,2121.2,3.42889529]
[1773419031415,3.60919997,2122.2,2121.2,3.42889529]
[1773419031730,3.60919997,2122.2,2121.1,1.17863372]
[1773419031930,3.60919997,2122.0,2121.0,0.0011]
[1773419032137,3.60919997,2122.0,2121.0,1.22692907]
[1773419032436,3.60919997,2121.8,2121.0,0.04824757]
[1773419032814,3.60919997,2121.8,2121.0,0.0011]
[1773419033332,1.17818935,2121.9,2121.0,1.22693678]
[1773419033524,4.78738932,2121.9,2121.0,1.22693678]
[1773419033726,3.60919997,2121.8,2121.0,0.0011]
[1773419034129,3.90079405,2121.9,2120.7,0.0011]
[1773419034130,3.60919997,2121.4,2120.7,0.0011]
[1773419034331,5.40219997,2121.4,2120.7,0.0011]
[1773419034524,4.78772257,2121.3,2120.7,0.0011]
[1773419035042,3.60919997,2121.1,2120.2,0.0011]
[1773419035333,3.60919997,2121.1,2120.2,1.22739424]
[1773419035538,3.60919997,2121.1,2120.2,0.0011]
[1773419035736,3.60919997,2121.1,2120.2,1.22739608]
[1773419036543,1.17868929,2121.0,2120.2,1.22739608]
[1773419036927,1.17868929,2121.0,2120.2,0.0011]
[1773419037315,1.17868929,2121.0,2120.2,1.18023065]
[1773419037510,1.17868929,2121.0,2120.2,1.22739601]
[1773419037836,3.60919997,2120.9,2120.2,0.0011]
[1773419038428,4.71475719,2121.1,2120.2,0.0011]
[1773419038818,1.17863372,2121.1,2120.3,3.47605842]
[1773419039016,2.97046705,2121.4,2120.3,3.47605842]
[1773419040130,2.97046705,2121.4,2120.3,3.42889529]
[1773419040650,3.60919997,2121.3,2120.2,0.0011]
[1773419040942,3.60919997,2121.3,2120.2,1.18019613]
[1773419041141,3.60919997,2121.3,2120.4,0.0011]
[1773419041826,5.40119997,2121.3,2120.4,0.0011]
[1773419042217,3.60919997,2121.2,2120.4,0.0011]
[1773419042844,1.17863372,2121.1,2120.4,0.0011]
[1773419043028,3.60919997,2121.0,2120.4,0.0011]
[1773419043443,3.60919997,2121.0,2120.4,0.04826091]
[1773419043932,1.17863372,2121.1,2120.4,0.0011]
[1773419044132,3.60919997,2121.0,2120.4,0.04826091]
[1773419044334,3.60919997,2121.0,2120.4,0.0011]
[1773419044741,1.17874487,2120.9,2120.4,0.0011]
[1773419044928,1.17869765,2121.0,2120.4,0.0011]
[1773419045648,4.78789762,2121.0,2120.4,0.0011]
[1773419046050,4.78789762,2121.0,2120.2,0.0011]
[1773419046051,3.60919997,2120.9,2120.2,0.0011]
[1773419046548,5.40019997,2120.9,2120.2,0.0011]
[1773419046739,1.17880045,2120.8,2120.2,1.18023404]
[1773419046943,1.17863372,2121.1,2120.3,3.47605842]
[1773419047326,1.17859723,2121.2,2120.3,3.47605842]
[1773419047651,1.07859723,2121.2,2120.3,3.42889529]
[1773419048570,1.07859723,2121.2,2120.4,0.04716091]
[1773419049034,3.60919997,2121.1,2120.4,0.04716091]
[1773419049226,3.60919997,2121.1,2120.2,1.18022094]
[1773419050359,3.60919997,2121.1,2120.3,0.04716313]
[1773419050524,3.60919997,2121.1,2120.2,0.0011]
[1773419050726,3.60919997,2121.1,2120.2,1.22739168]
[1773419051038,3.60919997,2121.1,2120.2,1.18023084]
[1773419051039,1.17868929,2121.0,2120.2,1.18023084]
[1773419051360,1.17868929,2121.0,2120.2,0.0011]
[1773419051659,2.9685226,2121.3,2120.3,3.42889529]
[1773419052057,2.9685226,2121.3,2120.4,0.04716091]
[1773419052272,1.1785226,2121.3,2120.4,3.4760562]
[1773419052567,1.17823453,2121.9,2120.9,3.42889529]
[1773419052742,3.60919997,2122.1,2120.9,3.42889529]
[1773419052743,1.1781093,2122.1,2120.9,3.42889529]
[1773419052941,10.11205053,2122.4,2121.1,3.42889529]
[1773419052942,1.17796729,2122.3,2121.1,3.42889529]
[1773419053364,3.60919997,2122.2,2121.1,3.42889529]
[1773419053537,3.60919997,2122.2,2120.9,1.17871439]
[1773419053859,1.17796729,2122.3,2121.0,3.42889529]
[1773419054750,3.60919997,2122.2,2121.0,3.42889529]
[1773419054957,0.001,2121.3,2121.1,1.17863372]
[1773419055263,0.001,2121.3,2121.0,3.42889529]
[1773419055465,0.001,2121.3,2120.7,4.60769628]
[1773419055761,0.001,2121.3,2120.6,0.0011]
[1773419056566,0.001,2121.3,2120.6,1.18000717]
[1773419056736,0.001,2121.3,2120.7,3.47604953]
[1773419057167,0.001,2121.3,2120.8,1.17880045]
[1773419057342,0.001,2121.3,2120.9,0.04714979]
[1773419057537,0.001,2121.3,2120.7,4.60773871]
[1773419057872,0.001,2121.3,2120.7,4.65489295]
[1773419058442,0.001,2121.3,2120.7,4.65489514]
[1773419059065,0.001,2121.3,2120.7,4.6077409]
[1773419059568,0.001,2121.3,2120.6,0.0011]
[1773419061045,3.59774904,2121.1,2120.6,0.0011]
[1773419061576,3.59774904,2121.1,2120.4,0.0011]
[1773419062147,4.79010028,2121.2,2120.2,0.0011]
[1773419062148,3.59774904,2120.8,2120.2,0.0011]
[1773419063072,3.59774904,2120.6,2120.2,0.0011]
[1773419063261,1.17885603,2120.7,2120.1,0.0011]
[1773419063262,5.38474904,2120.5,2120.1,0.0011]
[1773419063464,3.59774904,2120.4,2120.0,0.0011]
[1773419063652,3.59774904,2120.4,2120.0,0.0022]
[1773419064674,3.59774904,2120.4,2120.0,0.0011]
[1773419064856,3.59774904,2120.4,2120.0,0.0022]
[1773419065056,1.17885603,2120.7,2120.0,0.0011]
[1773419065271,4.77660507,2120.7,2120.1,0.0011]
[1773419065854,4.71506634,2120.9,2120.1,0.0011]
[1773419066056,10.09981538,2120.9,2120.1,0.0011]
[1773419066249,3.59774904,2120.8,2120.1,0.0011]
[1773419066448,3.59774904,2120.8,2120.0,0.0011]
[1773419066660,3.59774904,2120.8,2120.0,0.0022]
[1773419067156,1.17891162,2120.6,2120.2,0.0011]
[1773419067670,1.17891162,2120.6,2120.3,0.0011]
[1773419069384,1.17884098,2120.8,2120.3,0.0011]
[1773419069751,1.17884098,2120.8,2120.2,0.0011]
[1773419069985,4.67327039,2120.8,2120.2,0.0011]
[1773419070366,3.49442941,2120.7,2120.2,0.0011]
[1773419070676,1.788,2120.6,2120.2,0.0011]
[1773419071049,1.17884098,2120.8,2120.2,0.0011]
[1773419071248,3.59774904,2121.0,2120.2,0.0011]
[1773419071451,1.788,2120.7,2120.2,3.39889531]
[1773419071647,1.17874487,2120.9,2120.2,3.39889531]
[1773419071898,1.788,2120.8,2120.2,3.39889531]
[1773419072573,1.788,2120.7,2120.2,0.0011]
[1773419072768,1.17874487,2120.9,2120.2,0.0011]
[1773419072972,1.788,2120.8,2120.2,3.39889531]
[1773419073357,2.96685603,2120.7,2120.3,0.04716313]
[1773419073782,2.96685603,2120.7,2120.2,3.39889531]
[1773419073970,1.17885603,2120.7,2120.3,0.04716313]
[1773419075012,2.96685603,2120.7,2120.2,0.0011]
[1773419075563,3.59774904,2120.6,2120.0,0.0011]
[1773419076473,1.788,2120.5,2120.0,0.0011]
[1773419076660,5.38574904,2120.5,2119.9,0.0011]
[1773419076987,3.59774904,2120.4,2119.9,0.0011]
[1773419077885,3.59774904,2120.4,2119.7,0.0011]
[1773419077886,3.59774904,2120.2,2119.7,0.0011]
[1773419078259,3.59774904,2120.2,2119.7,0.00013136]
[1773419078260,1.789,2120.1,2119.7,0.00013136]
[1773419078866,3.59774904,2120.2,2119.7,0.00013136]
[1773419079205,1.789,2120.0,2119.7,0.00013136]
[1773419079574,1.17930091,2119.9,2119.7,0.00013136]
[1773419080408,1.17930091,2119.9,2119.2,0.0011]
[1773419080579,4.77704995,2119.9,2119.2,0.0011]
[1773419080970,3.59774904,2119.8,2119.2,0.0011]
[1773419081600,1.17930091,2119.9,2119.2,0.0011]
[1773419081772,1.79,2119.7,2119.2,0.0011]
[1773419082706,1.79,2119.7,2119.0,0.0011]
[1773419082707,5.38682108,2119.7,2119.0,0.0011]
[1773419082974,5.38672108,2119.6,2119.0,0.0011]
[1773419083188,1.82352212,2119.8,2119.0,0.0011]
[1773419083189,6.9742432,2119.8,2119.0,0.0011]
[1773419083381,1.82352212,2119.5,2119.0,0.0011]
[1773419083676,3.59572108,2119.6,2119.0,0.0011]
[1773419083878,1.17952347,2119.5,2119.0,0.0011]
[1773419084275,1.17952347,2119.5,2118.7,3.39889531]
[1773419084484,1.792,2119.4,2118.7,3.39889531]
[1773419084797,1.792,2119.4,2118.7,0.0011]
[1773419085407,5.29110519,2119.4,2118.7,0.0011]
[1773419085696,1.792,2119.3,2118.7,0.0011]
[1773419085881,1.17969044,2119.2,2118.7,0.0011]
[1773419086485,1.17969044,2119.2,2118.2,3.6274761]
[1773419087324,1.793,2119.1,2118.2,3.6274761]
[1773419087538,1.17969044,2119.2,2118.2,3.6274761]
[1773419087818,1.793,2119.0,2118.4,3.6274761]
[1773419088028,1.17941218,2119.7,2118.4,3.6274761]
[1773419088188,1.793,2119.6,2118.4,3.6274761]
[1773419088727,6.18537519,2119.4,2118.1,3.6274761]
[1773419088902,6.18537519,2119.4,2118.4,3.6274761]
[1773419088903,3.49910519,2119.4,2118.4,3.6274761]
[1773419089093,0.065536,2119.5,2118.5,3.6746793]
[1773419089293,1.794,2119.4,2118.5,3.6746793]
[1773419089792,1.17963478,2119.3,2118.6,0.04720098]
[1773419090989,3.48004248,2119.2,2117.3,0.0011]
[1773419091222,3.48004248,2118.5,2117.3,0.0011]
[1773419091515,1.82352212,2117.9,2116.8,3.38489213]
[1773419091689,4.48027,2117.8,2116.8,3.38489213]
[1773419091890,1.18058179,2117.6,2116.8,3.38489213]
[1773419092086,1.18058179,2117.6,2116.8,0.0011]
[1773419092701,1.794,2117.5,2116.8,1.22936189]
[1773419093025,2.97558179,2117.6,2116.9,3.38379213]
[1773419093907,4.72232716,2117.9,2116.9,3.38379213]
[1773419094111,1.795,2117.5,2116.9,3.38379213]
[1773419094312,1.795,2117.5,2116.8,1.1821235]
[1773419094313,1.795,2117.5,2116.8,0.0011]
[1773419094684,1.795,2117.5,2116.8,1.2293309]
[1773419094902,1.795,2117.5,2116.9,1.18095452]
[1773419095900,1.1806933,2117.4,2117.0,0.04833665]
[1773419096098,1.1806933,2117.4,2117.0,0.0011]
[1773419097440,0.64063984,2117.7,2117.1,3.38379213]
[1773419097640,0.64063984,2117.7,2117.3,3.38379213]
[1773419097841,1.18042373,2117.9,2117.4,0.04722773]
[1773419098040,0.57506784,2117.8,2117.4,4.61169903]
[1773419098207,0.57506784,2117.8,2117.5,3.38379213]
[1773419098410,1.18010419,2118.5,2117.7,3.38379213]
[1773419098640,0.04720098,2118.4,2117.8,3.43101094]
[1773419098835,1.796,2118.7,2117.8,3.43101094]
[1773419099045,1.796,2118.9,2117.8,3.43101094]
[1773419099250,0.04720098,2118.8,2117.8,3.43101094]
[1773419099940,0.5,2118.0,2117.8,3.43101094]
[1773419100110,0.04720098,2119.0,2118.0,3.38379213]
[1773419100311,0.04720098,2119.0,2118.2,3.38379213]
[1773419100517,0.001,2119.1,2118.2,3.38379213]
[1773419100718,0.04820098,2119.1,2118.2,3.38379213]
[1773419101050,0.001,2119.1,2118.2,3.38379213]
[1773419101627,6.51351732,2119.8,2118.1,4.34333795]
[1773419101628,1.17943618,2119.7,2118.6,3.38379213]
[1773419102044,4.71692727,2120.1,2118.8,3.38379213]
[1773419102045,4.71695919,2120.1,2118.8,3.38379213]
[1773419102428,1.796,2120.0,2118.8,3.38379213]
[1773419102932,4.71695919,2120.1,2118.8,3.38379213]
[1773419103143,1.795,2120.0,2118.8,3.38379213]
[1773419103343,4.71695919,2120.1,2118.8,3.38379213]
[1773419103527,1.795,2119.9,2118.8,3.38379213]
[1773419104151,1.795,2119.9,2118.9,1.17985747]
[1773419104152,1.17935654,2119.8,2118.9,1.17985747]
[1773419104351,1.17935654,2119.8,2119.0,3.38379213]
[1773419104567,1.17935654,2119.8,2118.6,3.38379213]
[1773419104732,1.17935654,2119.8,2118.7,3.38379213]
[1773419105561,0.001,2119.0,2118.7,3.38379213]
[1773419106069,0.001,2119.0,2118.4,4.72146012]
[1773419106070,1.796,2119.0,2118.4,0.0011]
[1773419106359,0.001,2119.0,2118.4,0.0011]
[1773419107929,0.001,2119.0,2118.1,0.0011]
[1773419108126,1.82352212,2118.7,2117.9,0.0011]
[1773419108363,4.66006702,2118.6,2117.9,0.0011]
[1773419109073,4.66006702,2118.6,2117.1,2.16466308]
[1773419109074,5.3035646,2118.4,2117.1,2.16466308]
[1773419109366,1.794,2118.3,2117.2,3.43102432]
[1773419109572,1.794,2118.5,2117.2,3.43102432]
[1773419109760,1.794,2118.5,2117.2,3.38379213]
[1773419109936,1.794,2118.5,2117.3,0.04722996]
[1773419110371,1.794,2118.5,2117.4,3.38379213]
[1773419110372,1.18013595,2118.4,2117.4,3.38379213]
[1773419110537,1.18013595,2118.4,2117.5,0.0472255]
[1773419110737,1.18013595,2118.4,2117.4,3.38379213]
[1773419110964,1.18013595,2118.4,2117.5,3.43101763]
[1773419111168,1.18013595,2118.4,2117.5,3.38379213]
[1773419111539,6.5135683,2118.9,2117.5,3.38379213]
[1773419111740,2.68627,2118.8,2117.5,3.38379213]
[1773419112340,1.17996884,2118.7,2117.6,3.38379213]
[1773419113268,1.18084268,2119.0,2118.0,3.38379213]
[1773419113469,1.18080276,2119.0,2118.0,3.38379213]
[1773419114368,1.18080276,2119.0,2118.2,3.38379213]
[1773419115364,1.18080276,2119.0,2118.4,3.38379213]
[1773419115672,1.18080276,2119.0,2118.1,3.38379213]
[1773419115967,1.793,2118.9,2118.2,3.43100202]
[1773419116269,1.18080276,2119.0,2118.2,3.38379213]
[1773419116483,0.001,2119.0,2118.4,3.38379213]
[1773419116664,4.71853914,2119.6,2118.5,0.0472032]
[1773419116665,4.7183165,2119.6,2118.5,0.0472032]
[1773419116863,6.5113165,2119.6,2118.6,3.38379213]
[1773419117266,4.7183165,2119.6,2118.6,3.38379213]
[1773419117476,1.17946782,2119.6,2118.6,3.38379213]
[1773419118190,4.71719853,2120.0,2118.9,3.38379213]
[1773419118382,1.17930091,2119.9,2118.9,3.38379213]
[1773419118581,4.71719853,2120.0,2118.9,4.56361639]
[1773419118787,8.19724101,2120.0,2118.9,3.38379213]
[1773419118979,3.48004248,2119.9,2118.4,3.38489213]
[1773419119363,0.001,2119.2,2118.4,3.38489213]
[1773419120691,0.001,2119.2,2118.6,3.38379213]
[1773419121888,0.001,2119.2,2118.4,0.0011]
[1773419122890,0.001,2119.2,2118.4,0.04830543]
[1773419123983,3.55000033,2119.2,2118.4,0.0011]
[1773419124888,2.96974611,2119.1,2118.4,0.0011]
[1773419125286,3.54900033,2118.9,2118.1,0.0011]
[1773419125475,3.54900033,2118.8,2118.1,0.0011]
[1773419126102,3.54900033,2118.6,2117.9,0.0011]
[1773419126896,1.18019166,2118.3,2117.3,3.41344544]
[1773419127194,1.79,2118.2,2117.3,3.41344544]
[1773419127975,3.54900033,2118.0,2117.1,0.98380548]
[1773419128176,4.72919199,2118.3,2117.1,0.98380548]
[1773419128477,1.79,2117.9,2117.1,0.98380548]
[1773419129086,1.18047029,2117.8,2117.1,0.98380548]
[1773419129597,1.18047029,2117.8,2117.1,2.1646616]
[1773419129973,3.54900033,2118.1,2117.1,2.1646616]
[1773419129974,1.79,2118.1,2117.2,3.41344544]
[1773419130297,1.79,2118.1,2117.3,3.4606754]
[1773419130477,2.9703031,2118.2,2117.3,3.4606754]
[1773419130805,4.72034949,2118.5,2117.3,3.41344544]
[1773419130806,1.79,2118.5,2117.3,3.41344544]
[1773419131607,1.18013595,2118.4,2117.5,3.41454544]
[1773419132304,1.17996884,2118.8,2117.7,3.41344544]
[1773419132504,6.50904665,2118.7,2117.8,3.41344544]
[1773419132684,6.50904665,2118.7,2117.5,0.0011]
[1773419132685,1.17995551,2118.8,2118.0,3.41344544]
[1773419133202,1.17995551,2118.8,2117.5,0.0011]
[1773419133381,1.17995551,2118.8,2117.6,3.41344544]
[1773419133807,4.72895584,2118.8,2117.7,3.46066648]
[1773419133983,1.789,2118.7,2117.7,3.41344544]
[1773419134305,4.72895584,2118.8,2117.8,0.04721881]
[1773419134603,1.17995551,2118.8,2117.8,3.46066425]
[1773419134807,1.789,2118.7,2117.8,3.46066425]
[1773419135306,1.789,2118.7,2117.8,3.41344544]
[1773419135790,1.18002454,2118.6,2118.0,4.59380426]
[1773419137202,1.18002454,2118.6,2118.0,3.41344544]
[1773419137377,1.18002454,2118.6,2117.9,1.18037448]
[1773419137579,1.18002454,2118.6,2117.7,4.59394376]
[1773419138504,1.18002454,2118.6,2117.8,3.46066425]
[1773419138879,1.18002454,2118.6,2117.8,3.41344544]
[1773419139082,4.71910378,2119.1,2118.0,3.41344544]
[1773419139282,6.50710378,2119.1,2118.0,3.41344544]
[1773419139907,4.72974644,2119.2,2118.3,3.41344544]
[1773419139908,0.001,2119.2,2118.3,3.41344544]
[1773419140116,0.001,2119.4,2118.6,3.41344544]
[1773419140606,1.77,2119.4,2118.2,1.18024737]
[1773419140780,1.77,2119.4,2118.3,3.41344544]
[1773419141512,1.771,2119.3,2118.3,3.41344544]
[1773419142408,1.17969044,2119.2,2118.5,3.41344544]
[1773419144394,1.775,2119.3,2118.6,1.18002454]
[1773419144595,1.775,2119.3,2118.5,4.59348255]
[1773419144795,0.001,2119.0,2118.6,3.41344544]
[1773419145121,8.26687162,2119.7,2118.9,3.41344544]
[1773419145122,1.17944171,2119.7,2118.9,3.41344544]
[1773419145810,2.95513404,2120.2,2118.9,3.41344544]
[1773419146182,1.777,2120.1,2118.9,3.41344544]
[1773419146588,2.95624299,2120.1,2119.1,3.43986822]
[1773419146814,6.2993281,2120.1,2119.1,3.43986822]
[1773419147187,1.17924299,2120.1,2119.1,3.43986822]
[1773419147385,1.778,2120.0,2119.1,3.43986822]
[1773419148600,1.17930091,2119.9,2119.1,4.6195877]
[1773419148915,1.18030091,2119.9,2119.1,4.61961121]
[1773419149095,1.17930091,2119.9,2119.1,4.61961121]
[1773419149295,0.001,2119.8,2119.1,4.61961121]
[1773419149805,0.001,2119.7,2119.1,4.6196063]
[1773419150011,1.17930091,2119.9,2119.1,4.6196063]
[1773419150394,0.001,2119.8,2119.1,4.6196063]
[1773419150929,1.17930091,2119.9,2119.1,4.6196063]
[1773419151313,0.001,2119.7,2119.0,1.17976281]
[1773419151508,0.001,2119.7,2118.8,3.44351943]
[1773419151509,4.53340034,2119.9,2118.8,3.44351943]
[1773419151819,4.53340034,2119.9,2118.9,0.04719429]
[1773419151820,0.001,2119.7,2118.9,0.04719429]
[1773419151992,1.78,2119.8,2119.0,0.04719207]
[1773419152392,2.32160102,2119.9,2118.8,3.49071595]
[1773419152596,1.781,2119.8,2118.9,0.04719429]
[1773419152810,1.18041218,2119.7,2118.9,1.22704011]
[1773419153014,1.17941218,2119.7,2118.8,4.62338855]
[1773419153405,0.001,2119.6,2118.8,4.62338855]
[1773419153616,1.17941218,2119.7,2118.8,4.62338855]
[1773419153924,4.53351161,2119.7,2118.6,1.18001486]
[1773419154126,4.53351161,2119.7,2118.7,3.49071818]
[1773419154127,1.781,2119.6,2118.7,3.49071818]
[1773419154304,1.782,2119.5,2118.7,3.49071818]
[1773419154494,1.781,2119.4,2118.7,3.49071818]
[1773419154929,1.782,2119.5,2118.8,4.62343258]
[1773419155222,3.35409943,2119.4,2118.4,1.18013414]
[1773419155521,3.35509943,2119.4,2118.4,1.18009887]
[1773419155720,3.35509943,2119.4,2118.4,4.6236183]
[1773419155925,3.35409943,2119.4,2118.3,0.92207801]
[1773419156125,0.001,2119.2,2118.3,0.92207801]
[1773419156294,3.35409943,2119.4,2118.3,0.92207801]
[1773419156499,0.001,2119.3,2118.3,0.92207801]
[1773419156710,3.35409943,2119.4,2118.3,0.92207801]
[1773419156914,3.35409943,2119.2,2118.3,0.92207801]
[1773419157113,3.35509943,2119.2,2118.3,0.92207801]
[1773419157308,3.35409943,2119.2,2118.8,0.0011]
[1773419157510,3.35409943,2119.2,2118.3,0.92207801]
[1773419157511,3.35509943,2118.8,2118.3,0.81962464]
[1773419157708,1.782,2118.7,2117.8,3.44351943]
[1773419158001,1.782,2118.7,2117.3,4.72407401]
[1773419158002,3.35409943,2118.5,2117.5,3.44461943]
[1773419158196,3.35409943,2118.5,2118.3,0.0011]
[1773419158425,3.35409943,2118.5,2117.5,3.44461943]
[1773419158628,0.001,2118.2,2117.5,0.0011]
[1773419158803,3.35409943,2118.2,2117.5,0.0011]
[1773419159205,0.001,2117.8,2117.5,0.0011]
[1773419159604,0.001,2117.6,2117.5,0.0011]
[1773419159804,1.783,2117.7,2117.5,0.0011]
[1773419160005,4.53440253,2118.1,2117.5,0.0011]
[1773419160312,1.783,2118.0,2117.5,0.0011]
[1773419160628,1.783,2118.0,2117.3,0.0011]
[1773419160629,0.001,2117.7,2117.3,0.0011]
[1773419160834,5.13709943,2118.0,2117.3,0.0011]
[1773419161029,1.783,2117.9,2117.3,0.0011]
[1773419161327,2.96347029,2117.8,2117.3,0.0011]
[1773419161535,4.95691208,2118.2,2117.3,0.0011]
[1773419161536,8.07486608,2118.4,2117.3,0.0011]
[1773419161728,4.53429109,2118.3,2117.3,0.0011]
[1773419162032,3.35409943,2118.2,2117.3,0.0011]
[1773419162327,1.18019166,2118.3,2117.3,3.44461943]
[1773419162529,1.783,2118.2,2117.3,3.44461943]
[1773419162914,1.18019166,2118.3,2117.3,3.44461943]
[1773419163114,1.18019166,2118.3,2117.5,3.44351943]
[1773419163301,4.72076665,2118.5,2117.6,0.04722327]
[1773419163502,8.07486608,2118.5,2117.5,4.62412327]
[1773419163834,5.18047273,2118.1,2117.3,0.0011]
[1773419164329,0.001,2117.9,2117.3,0.0011]
[1773419164510,1.783,2117.8,2117.3,0.0011]
[1773419164833,6.96347273,2117.8,2117.0,0.0011]
[1773419165332,1.18052604,2117.7,2117.0,0.0011]
[1773419165830,7.45490743,2118.7,2117.1,3.44351943]
[1773419166030,9.85842041,2118.7,2117.3,3.44351943]
[1773419166200,9.85842041,2118.7,2117.0,1.8274733]
[1773419166201,8.07442041,2118.7,2117.5,3.44351943]
[1773419166404,1.784,2118.6,2117.6,3.44351943]
[1773419166606,5.13809943,2118.6,2117.1,3.44351943]
[1773419166805,3.35409943,2118.5,2117.1,3.44351943]
[1773419167218,0.001,2118.4,2117.2,3.49075162]
[1773419167417,4.53423538,2118.4,2117.2,4.67154181]
[1773419168008,4.53523538,2118.4,2117.2,4.67154181]
[1773419168647,4.53523538,2118.4,2117.2,4.62430962]
[1773419168648,4.53423538,2118.4,2117.2,4.62430962]
[1773419169011,4.53523538,2118.4,2117.2,4.62430962]
[1773419169640,3.35409943,2118.1,2117.0,3.44461943]
[1773419170140,0.001,2117.9,2117.4,0.0011]
[1773419170336,1.784,2117.8,2117.4,0.0011]
[1773419170636,0.001,2117.7,2117.4,0.0011]
[1773419170810,1.784,2117.8,2117.4,0.0011]
[1773419171010,0.001,2117.5,2117.4,0.0011]
[1773419171447,4.53462547,2117.7,2117.1,0.0011]
[1773419171738,4.53462547,2117.7,2116.8,0.0011]
[1773419171739,3.35409943,2117.4,2116.8,0.0011]
[1773419172536,3.35409943,2117.4,2116.2,0.0011]
[1773419172737,3.35409943,2117.1,2116.2,0.0011]
[1773419172910,1.784,2117.0,2116.2,0.0011]
[1773419173517,1.18097217,2116.9,2116.2,0.0011]
[1773419173923,1.784,2116.8,2116.2,0.0011]
[1773419175131,5.13809943,2116.8,2116.2,0.0011]
[1773419175513,1.18108376,2116.7,2116.2,0.0011]
[1773419175837,3.35409943,2116.6,2116.2,0.0011]
[1773419176141,3.35409943,2116.6,2116.0,0.0011]
[1773419176455,3.35409943,2116.6,2115.8,0.0011]
[1773419176749,3.35409943,2116.6,2114.1,1.1825363]
[1773419176750,3.35409943,2115.6,2114.1,1.1825363]
[1773419176910,1.784,2115.5,2114.2,3.44351943]
[1773419177111,5.13809943,2115.5,2114.2,3.44351943]
[1773419177419,3.35409943,2115.3,2114.1,1.1825363]
[1773419177750,3.35409943,2115.3,2113.9,5.54760038]
[1773419177751,3.35409943,2114.9,2113.9,0.81745517]
[1773419177932,3.35409943,2114.9,2113.9,2.00006771]
[1773419178314,1.784,2114.8,2113.9,2.00006771]
[1773419178508,5.18931929,2114.7,2113.9,0.81745517]
[1773419178715,3.35409943,2114.3,2112.9,4.7323837]
[1773419179148,5.18931929,2114.1,2112.9,4.7323837]
[1773419179348,5.18931929,2114.1,2113.0,0.04732607]
[1773419179349,3.35409943,2113.9,2113.0,0.04732607]
[1773419179580,1.18270413,2113.8,2112.8,0.04733055]
[1773419179863,1.18270413,2113.8,2112.3,1.50704835]
[1773419179864,2.56534173,2113.6,2112.3,1.50704835]
[1773419180014,1.784,2113.5,2112.4,0.04733951]
[1773419180349,1.784,2113.4,2112.4,3.49085894]
[1773419180511,1.784,2113.8,2112.5,3.44351943]
[1773419180706,1.784,2113.8,2112.7,3.44351943]
[1773419181326,1.784,2113.8,2112.8,0.04733055]
[1773419181532,1.783,2113.7,2112.9,1.18320791]
[1773419181738,1.18269049,2113.9,2113.0,0.04732607]
[1773419181914,1.783,2113.6,2112.7,4.62683824]
[1773419182443,1.783,2113.6,2112.4,1.18348797]
[1773419182641,3.60099597,2113.8,2112.5,0.04733727]
[1773419182942,1.783,2113.7,2112.5,3.68746823]
[1773419183152,3.97872223,2114.3,2112.7,3.68746823]
[1773419183359,2.56534173,2114.3,2112.7,3.68746823]
[1773419183513,1.783,2114.2,2112.8,1.18326391]
[1773419183713,1.1824852,2114.2,2112.9,3.68746823]
[1773419183955,2.56534173,2114.3,2112.9,3.68746823]
[1773419184153,1.783,2114.1,2113.1,3.68746823]
[1773419184358,1.783,2114.1,2113.2,0.04732159]
[1773419184652,1.783,2114.1,2113.1,3.68746823]
[1773419184965,1.783,2114.1,2113.2,0.04732159]
[1773419185187,1.783,2114.1,2113.2,3.73478982]
[1773419185467,3.60099597,2114.6,2113.2,3.73478982]
[1773419185631,2.67558184,2115.0,2113.4,3.68746823]
[1773419185632,1.783,2114.5,2113.4,3.68746823]
[1773419186060,1.783,2114.4,2113.4,3.68746823]
[1773419186845,1.783,2114.4,2113.3,1.18298395]
[1773419187041,1.783,2114.4,2113.3,4.87045218]
[1773419187251,1.18219539,2114.8,2113.0,4.87062014]
[1773419187252,3.60099597,2114.3,2113.0,4.87062014]
[1773419187826,1.18248037,2114.2,2113.0,4.87062014]
[1773419188656,3.60099597,2114.0,2112.7,1.18331992]
[1773419188879,6.28726597,2113.7,2112.7,1.18331992]
[1773419189040,5.38299597,2113.6,2112.6,1.18447419]
[1773419189232,5.38299597,2113.6,2112.7,0.04733279]
[1773419189628,1.782,2113.5,2112.6,1.18447419]
[1773419189857,1.782,2113.5,2112.6,0.0011]
[1773419190167,1.782,2113.4,2112.6,0.0011]
[1773419190371,3.60099597,2113.3,2112.3,1.45435525]
[1773419190660,1.782,2113.2,2112.3,1.45435525]
[1773419190853,3.60099597,2113.3,2112.3,1.45435525]
[1773419191054,1.782,2113.2,2112.3,1.40701349]
[1773419191230,1.782,2113.2,2112.3,1.45435525]
[1773419191654,3.60099597,2113.3,2112.3,1.40701349]
[1773419191850,1.42110903,2113.6,2112.4,0.04733951]
[1773419192083,2.96492877,2113.4,2112.5,1.18343195]
[1773419192277,1.782,2113.4,2112.5,1.18343195]
[1773419192453,1.18291635,2113.5,2112.6,0.04733503]
[1773419192654,1.782,2113.4,2112.6,0.04733503]
[1773419192882,5.38299597,2113.4,2112.4,1.18345206]
[1773419193061,5.38299597,2113.4,2112.3,1.40705023]
[1773419193062,3.60099597,2113.3,2112.3,1.40705023]
[1773419193569,1.782,2113.2,2112.3,1.40705023]
[1773419193773,5.38299597,2113.2,2112.3,1.40705023]
[1773419193970,5.38299597,2113.2,2112.1,0.0011]
[1773419194173,6.56605546,2113.2,2112.1,0.0011]
[1773419194368,1.782,2113.2,2112.1,3.73591447]